bitfinex-derivatives/quotes_BNBF0:USTF0_20250112
["timestamp","ask_amount","ask_price","bid_price","bid_amount"]
[1736683033965,0.28920959,691.54,690.45,3.01104475]
[1736683034171,0.28920959,691.54,690.46,1.78154033]
[1736683034370,0.28920959,691.54,690.43,1.78154033]
[1736683034771,0.28920959,691.54,690.42,1.30071556]
[1736683034973,0.28920959,691.54,690.43,1.30071556]
[1736683036172,0.28920959,691.54,690.47,1.30071556]
[1736683038575,0.28920959,691.54,690.42,0.90313712]
[1736683038775,0.28920959,691.54,690.43,0.28967455]
[1736683039973,0.28920959,691.54,690.43,2.07121488]
[1736683040876,0.28920959,691.54,690.43,0.28967455]
[1736683044478,0.28920959,691.54,690.45,1.30071556]
[1736683045276,0.28920959,691.54,690.46,1.30071556]
[1736683047688,0.28920959,691.54,690.54,1.30071556]
[1736683048783,0.28920959,691.54,690.53,1.30071556]
[1736683050086,0.28920959,691.54,690.58,1.30071556]
[1736683051683,0.28920959,691.54,690.51,3.91302972]
[1736683051882,0.28920959,691.54,690.52,1.78154033]
[1736683052083,0.28920959,691.54,690.52,2.68339077]
[1736683053084,0.28920959,691.54,690.53,3.01104475]
[1736683053286,0.28920959,691.54,690.54,2.68339077]
[1736683054483,0.28920959,691.54,690.55,3.01104475]
[1736683054681,0.28920959,691.54,690.56,1.78154033]
[1736683055184,0.28920959,691.54,690.56,2.68340439]
[1736683056783,0.28920959,691.54,690.57,3.01104475]
[1736683056981,0.28920959,691.54,690.58,1.78154033]
[1736683058886,0.28920959,691.54,690.53,2.68335035]
[1736683059283,0.28920959,691.54,690.53,1.78154033]
[1736683059684,0.28920959,691.54,690.57,1.30071556]
[1736683060887,0.28920959,691.54,690.56,1.30071556]
[1736683061889,0.28920959,691.54,690.56,4.31176031]
[1736683062088,0.28920959,691.54,690.59,1.30071556]
[1736683063482,0.28920959,691.54,690.57,1.78154033]
[1736683063483,0.28920959,691.54,690.6,1.30071556]
[1736683065585,0.28920959,691.54,690.63,1.30071556]
[1736683066793,0.28920959,691.54,690.61,1.78154033]
[1736683067393,0.28920959,691.54,690.61,2.68320515]
[1736683067594,0.28920959,691.54,690.62,3.01104475]
[1736683067794,0.28920959,691.54,690.63,1.78154033]
[1736683069789,0.28920959,691.54,690.62,1.78154033]
[1736683069995,0.28920959,691.54,690.62,3.08225589]
[1736683071298,0.28920959,691.54,690.63,3.01104475]
[1736683071497,0.28920959,691.54,690.64,1.78154033]
[1736683073395,0.28920959,691.54,690.66,1.30071556]
[1736683075297,0.28920959,691.54,690.66,3.07928944]
[1736683076501,0.28920959,691.54,690.67,3.01104475]
[1736683077502,0.28920959,691.54,690.67,4.31176031]
[1736683077801,0.28920959,691.54,690.67,1.30071556]
[1736683078298,1.0842794,691.83,690.67,1.30071556]
[1736683078705,1.0842794,691.84,690.66,1.30071556]
[1736683080707,1.0842794,691.83,690.66,1.30071556]
[1736683081609,1.0842794,691.78,690.63,1.77868361]
[1736683082806,1.0842794,691.78,690.62,2.6803768]
[1736683083510,1.0842794,691.78,690.62,1.77868361]
[1736683084411,1.0842794,691.76,690.62,1.77868361]
[1736683085211,1.0842794,691.77,690.62,1.77868361]
[1736683086310,1.0842794,691.77,690.6,2.68049004]
[1736683087809,1.0842794,691.77,690.61,3.01104475]
[1736683088009,1.0842794,691.77,690.62,1.77868361]
[1736683088816,1.0842794,691.77,690.62,2.68062954]
[1736683089009,1.0842794,691.75,690.62,2.68062954]
[1736683089412,1.0842794,691.75,690.63,3.01104475]
[1736683089612,1.0842794,691.75,690.64,1.77868361]
[1736683090010,1.0842794,691.76,690.64,1.77868361]
[1736683090815,1.0842794,691.75,690.64,1.77868361]
[1736683091616,1.0842794,691.75,690.6,1.77868361]
[1736683094223,1.0842794,691.75,690.6,2.68022876]
[1736683094621,1.0842794,691.76,690.61,3.01104475]
[1736683095627,1.0842794,691.81,690.61,3.01104475]
[1736683096224,1.0842794,691.81,690.45,1.30071556]
[1736683096726,1.0842794,691.82,690.47,1.30071556]
[1736683097523,1.0842794,691.82,690.43,0.28967455]
[1736683097524,1.0842794,691.81,690.45,1.30071556]
[1736683098621,1.0842794,691.81,690.44,1.30071556]
[1736683099625,1.0842794,691.81,690.44,1.59038591]
[1736683100326,1.0842794,691.82,690.44,0.28967035]
[1736683101228,1.0842794,691.83,690.44,0.28967035]
[1736683102123,1.0842794,691.82,690.44,0.28967035]
[1736683102529,0.28909671,691.81,690.44,0.28967035]
[1736683103329,0.28909671,691.81,690.44,1.191559]
[1736683103529,0.28909671,691.81,690.44,0.28967035]
[1736683104229,1.0842794,691.75,690.49,1.30071556]
[1736683105030,0.28909671,691.81,690.44,1.59038591]
[1736683105031,1.0842794,691.71,690.44,1.59038591]
[1736683105929,0.28909671,691.81,690.44,1.59038591]
[1736683105930,1.0842794,691.72,690.44,0.28967035]
[1736683106728,1.0842794,691.72,690.44,4.27282845]
[1736683106923,1.0842794,691.72,690.45,0.90188865]
[1736683107826,1.0842794,691.74,690.45,0.90188865]
[1736683108233,1.0842794,691.74,690.45,3.9129334]
[1736683108531,1.0842794,691.74,690.46,2.68244254]
[1736683108931,1.0842794,691.73,690.46,2.68244254]
[1736683109832,1.0842794,691.74,690.47,3.01104475]
[1736683110033,1.0842794,691.74,690.48,2.68244254]
[1736683111332,1.0842794,691.75,690.49,3.01104475]
[1736683111529,1.0842794,691.75,690.5,2.68244254]
[1736683112335,1.0842794,691.75,690.5,1.78055389]
[1736683112535,1.0842794,691.8,690.5,1.78055389]
[1736683112734,0.28910507,691.79,690.5,1.78055389]
[1736683117036,0.28910507,691.79,690.49,1.78055389]
[1736683119340,0.28910507,691.79,690.49,4.79159864]
[1736683119540,0.28910507,691.79,690.5,1.78055389]
[1736683119742,0.28910507,691.79,690.49,3.01104475]
[1736683120039,1.0842794,691.72,690.49,3.01104475]
[1736683120740,0.28910507,691.79,690.49,3.01104475]
[1736683121942,0.28910507,691.79,690.44,0.28967035]
[1736683129942,1.51100144,691.78,690.44,0.28967035]
[1736683130143,0.28911343,691.77,690.44,0.28967035]
[1736683134044,1.0842794,691.75,690.44,0.28967035]
[1736683134248,0.55500848,691.74,690.44,0.28967035]
[1736683134444,0.28913015,691.73,690.44,0.28967035]
[1736683135049,1.0842794,691.64,690.44,0.28967035]
[1736683136053,1.0842794,691.65,690.44,0.28967035]
[1736683136947,1.0842794,691.63,690.44,0.28967035]
[1736683137847,1.0842794,691.64,690.44,0.28967035]
[1736683139852,0.28913015,691.73,690.44,0.28967035]
[1736683139853,1.0842794,691.66,690.44,0.28967035]
[1736683140253,1.0842794,691.66,690.29,1.30071556]
[1736683141256,1.0842794,691.69,690.27,1.30071556]
[1736683141454,1.0842794,691.69,690.27,3.9796998]
[1736683141654,1.0842794,691.69,690.28,0.90030382]
[1736683142351,1.0842794,691.72,690.3,1.30071556]
[1736683143055,1.0842794,691.72,690.31,1.30071556]
[1736683144956,1.0842794,691.7,690.3,2.20101938]
[1736683145553,1.0842794,691.7,690.3,5.21206413]
[1736683145750,1.0842794,691.7,690.31,2.67898424]
[1736683146157,1.0842794,691.7,690.31,3.9796998]
[1736683146455,1.0842794,691.7,690.32,0.90030382]
[1736683147252,1.0842794,691.69,690.32,2.20101938]
[1736683147657,1.0842794,691.69,690.32,5.21206413]
[1736683147855,1.0842794,691.69,690.33,2.67898424]
[1736683148257,1.0842794,691.68,690.33,2.67898424]
[1736683148654,1.0842794,691.68,690.34,3.01104475]
[1736683148858,1.0842794,691.68,690.35,2.67937282]
[1736683149261,1.0842794,691.72,690.36,1.30071556]
[1736683149462,1.0842794,691.72,690.36,2.20140796]
[1736683149963,1.0842794,691.72,690.36,1.30071556]
[1736683150165,1.0842794,691.71,690.41,1.30071556]
[1736683151259,1.0842794,691.69,690.42,1.30071556]
[1736683152364,1.0842794,691.69,690.39,1.77868042]
[1736683152365,1.0842794,691.67,690.41,1.30071556]
[1736683152962,1.51069533,691.84,690.41,1.30071556]
[1736683152963,1.0842794,691.66,690.41,1.30071556]
[1736683153562,1.0842794,691.66,690.41,3.07939598]
[1736683153964,1.0842794,691.64,690.41,1.77868042]
[1736683154363,1.0842794,691.64,690.41,4.78972517]
[1736683154567,1.0842794,691.64,690.42,1.77868042]
[1736683155069,1.0842794,691.65,690.42,1.77868042]
[1736683156168,1.0842794,691.65,690.42,4.78972517]
[1736683156373,1.0842794,691.65,690.43,1.77868042]
[1736683157069,1.0842794,691.6,690.43,1.77868042]
[1736683157463,1.0842794,691.6,690.38,2.68023639]
[1736683159065,1.0842794,691.6,690.39,3.01104475]
[1736683159269,1.0842794,691.6,690.4,1.77868042]
[1736683159569,1.0842794,691.62,690.4,1.77868042]
[1736683160169,1.0842794,691.62,690.39,3.01104475]
[1736683160468,1.0842794,691.63,690.39,3.01104475]
[1736683160868,1.0842794,691.63,690.29,1.30071556]
[1736683161170,1.0842794,691.7,689.89,1.30071556]
[1736683162070,1.0842794,691.71,689.89,1.30071556]
[1736683162866,1.0842794,691.72,689.89,1.30071556]
[1736683164366,1.5108921,691.76,689.95,1.30071556]
[1736683166273,1.5108921,691.76,689.94,1.30071556]
[1736683167372,1.5108921,691.76,689.85,3.00993062]
[1736683167373,1.5108921,691.76,689.93,1.30071556]
[1736683170573,0.26590214,691.75,689.93,1.30071556]
[1736683171271,0.26590214,691.75,689.9,2.68197564]
[1736683171871,1.0842794,691.65,690.21,1.30071556]
[1736683172775,1.0842794,691.65,690.22,1.30071556]
[1736683175178,1.5108921,691.76,690.17,0.90158517]
[1736683175179,1.0842794,691.66,690.19,1.30071556]
[1736683175779,1.0842794,691.66,690.19,2.20230073]
[1736683176378,1.0842794,691.67,690.2,1.30071556]
[1736683176773,1.0842794,691.67,690.2,3.9826912]
[1736683176974,1.0842794,691.67,690.2,1.30071556]
[1736683177380,1.51120375,691.66,690.2,1.30071556]
[1736683177579,1.51120375,691.66,689.37,1.30071556]
[1736683178684,1.0842794,691.63,689.41,1.30071556]
[1736683179780,1.0842794,691.65,689.32,1.30071556]
[1736683180382,1.51120375,691.66,689.29,2.20318861]
[1736683181286,1.51120375,691.66,689.29,5.21399714]
[1736683181487,1.51120375,691.66,689.3,2.68363194]
[1736683181683,0.28916777,691.64,689.41,0.29010313]
[1736683185883,0.26601912,691.63,689.41,0.29010313]
[1736683186084,0.28916777,691.64,689.41,0.29010313]
[1736683186283,0.26601929,691.63,689.41,0.29010313]
[1736683186483,0.28918031,691.61,689.41,0.29010313]
[1736683186885,0.2660184,691.6,689.41,0.29010313]
[1736683187084,0.28919286,691.58,689.41,0.29010313]
[1736683187288,0.2660184,691.57,689.41,0.29010313]
[1736683187488,0.28920122,691.56,689.41,0.29010313]
[1736683187788,0.2660184,691.55,689.66,1.30071556]
[1736683188692,0.28920959,691.54,689.68,0.28998956]
[1736683188996,0.2660184,691.53,689.77,1.30071556]
[1736683189188,0.55523889,691.52,689.79,0.28994331]
[1736683189386,0.55524307,691.51,689.79,0.28994331]
[1736683189692,0.55524725,691.5,689.79,0.28994331]
[1736683189891,0.26602094,691.49,689.79,0.28994331]
[1736683190091,0.55525144,691.49,689.82,1.30071556]
[1736683190285,0.26602094,691.48,689.83,0.2899265]
[1736683190489,0.28923886,691.47,689.83,0.2899265]
[1736683190684,0.26602094,691.46,689.83,0.2899265]
[1736683190890,0.28924723,691.45,689.83,0.2899265]
[1736683191186,0.26602094,691.44,689.83,0.2899265]
[1736683191389,0.2892556,691.43,689.83,0.2899265]
[1736683191589,0.26602094,691.42,689.83,0.2899265]
[1736683191787,0.28926396,691.41,689.83,0.2899265]
[1736683191986,0.26602126,691.4,689.83,0.2899265]
[1736683192189,0.28927233,691.39,689.83,0.2899265]
[1736683192388,0.26602126,691.38,689.83,0.2899265]
[1736683192989,0.26602126,691.38,689.83,1.59064206]
[1736683194094,0.26602126,691.38,689.83,0.2899265]
[1736683194692,0.26602145,691.37,689.83,0.2899265]
[1736683194894,0.28927233,691.39,689.83,0.2899265]
[1736683195194,0.26602145,691.38,689.83,0.2899265]
[1736683195389,0.28927233,691.39,689.83,0.2899265]
[1736683197992,0.28927233,691.39,689.83,3.30073503]
[1736683198193,0.28927233,691.39,689.84,2.68363194]
[1736683198496,0.26601997,691.38,689.85,0.28991809]
[1736683199592,0.28927233,691.39,689.85,3.30072662]
[1736683199797,0.28927233,691.39,689.86,2.68363194]
[1736683199994,0.28927233,691.39,689.87,0.28990969]
[1736683201495,0.28927233,691.39,689.87,3.30071822]
[1736683201698,0.28927233,691.39,689.88,1.78115889]
[1736683202099,0.28927233,691.39,689.89,0.28990128]
[1736683203299,0.28927233,691.39,689.89,3.30070981]
[1736683203496,0.28927233,691.39,689.9,1.78115889]
[1736683203698,0.28927233,691.39,689.91,0.28989288]
[1736683208906,0.26601731,691.38,689.91,0.28989288]
[1736683209606,0.26601731,691.38,689.91,3.30070141]
[1736683209804,1.37355173,691.39,689.95,1.30071556]
[1736683210602,1.37355173,691.39,689.91,3.30070141]
[1736683210603,0.28927233,691.39,689.92,1.77368225]
[1736683211307,1.0842794,691.36,689.94,1.30071556]
[1736683211703,1.0842794,691.36,689.94,3.07447022]
[1736683211902,1.0842794,691.36,689.95,1.77375466]
[1736683212403,1.0842794,691.36,689.96,0.28987187]
[1736683212609,1.0842794,691.29,690.06,1.30071556]
[1736683213503,0.28927233,691.39,689.97,3.01080853]
[1736683213504,1.0842794,691.3,690.08,1.30071556]
[1736683214309,1.0842794,691.29,690.06,1.30071556]
[1736683215303,1.0842794,691.28,690.06,1.30071556]
[1736683216412,1.0842794,691.26,690.06,1.30071556]
[1736683217210,1.0842794,691.27,690.08,1.30071556]
[1736683218215,1.0842794,691.29,690.02,1.30071556]
[1736683220415,1.0842794,691.27,690.07,1.30071556]
[1736683221014,1.0842794,691.23,690.07,1.30071556]
[1736683221912,1.0842794,691.22,689.98,0.28986347]
[1736683222119,1.0842794,691.22,689.99,3.01080853]
[1736683222617,1.0842794,691.25,689.99,3.01080853]
[1736683223420,1.0842794,691.23,690.0,1.77729531]
[1736683224019,1.0842794,691.23,689.99,3.01080853]
[1736683224616,0.28927233,691.39,689.98,0.28986347]
[1736683224617,1.0842794,691.16,689.98,0.28986347]
[1736683225422,1.0842794,691.17,689.98,0.28986347]
[1736683226319,1.0842794,691.19,689.98,0.28986347]
[1736683227421,1.0842794,691.2,689.98,0.28986347]
[1736683228828,1.0842794,691.23,689.98,0.28986347]
[1736683230721,1.0842794,691.25,689.98,0.28986347]
[1736683231824,1.0842794,691.28,689.98,0.28986347]
[1736683232621,1.0842794,691.23,689.98,0.28986347]
[1736683233424,1.0842794,691.22,689.98,0.28986347]
[1736683234422,1.0842794,691.24,689.98,0.28986347]
[1736683236226,1.0842794,691.23,689.98,0.28986347]
[1736683237029,0.28934347,691.22,689.98,0.28986347]
[1736683237229,1.0842794,691.17,689.98,0.28986347]
[1736683238936,0.28936859,691.16,689.98,0.28986347]
[1736683246742,1.37364799,691.16,689.98,0.28986347]
[1736683248742,1.0842794,691.14,689.98,0.28986347]
[1736683250943,0.28938115,691.13,689.98,0.28986347]
[1736683266661,1.0842794,691.12,689.98,0.28986347]
[1736683267554,1.0842794,691.09,689.98,0.28986347]
[1736683269660,1.0842794,691.06,689.98,0.28986347]
[1736683270664,1.0842794,691.0,689.98,0.28986347]
[1736683271961,1.0842794,691.01,689.98,0.28986347]
[1736683273967,1.0842794,691.0,689.98,0.28986347]
[1736683276074,1.0842794,691.07,689.98,0.28986347]
[1736683276274,1.37368568,691.07,689.98,0.28986347]
[1736683276876,1.0842794,691.06,689.98,0.28986347]
[1736683277875,1.0842794,691.05,689.62,3.01080853]
[1736683278077,0.28941884,691.04,689.62,3.01080853]
[1736683278275,0.28941884,691.04,689.61,1.30071556]
[1736683278877,1.0842794,691.0,689.52,1.30071556]
[1736683279076,0.28943978,690.99,689.53,0.29005264]
[1736683279878,0.28943978,690.99,689.53,1.5907682]
[1736683280576,0.28943978,690.99,689.53,3.37148939]
[1736683280977,1.0842794,690.98,689.56,1.30071556]
[1736683281180,1.0842794,690.98,689.57,0.29003581]
[1736683281679,1.37372337,690.98,689.57,0.29003581]
[1736683282084,0.28944397,690.98,689.57,0.29003581]
[1736683283781,0.28944397,690.98,689.57,2.070757]
[1736683284982,0.28944397,690.98,689.57,2.97086643]
[1736683286182,1.37372337,690.98,689.58,3.01080853]
[1736683286378,1.37372337,690.98,689.59,2.68083062]
[1736683286783,0.28944397,690.98,689.59,2.68083062]
[1736683287788,1.37372337,690.98,689.59,2.68083062]
[1736683288178,1.37372337,690.98,689.6,3.01080853]
[1736683288380,1.37372337,690.98,689.61,1.78072119]
[1736683290284,1.37372337,690.98,689.57,0.29003581]
[1736683292087,0.28944397,690.98,689.63,1.30071556]
[1736683292887,0.28944397,690.98,689.65,1.30071556]
[1736683293786,0.28944397,690.98,689.64,1.30071556]
[1736683294482,1.0842794,690.95,689.61,1.30071556]
[1736683294685,1.0842794,690.95,689.61,4.31152409]
[1736683294882,1.0842794,690.95,689.62,1.78072119]
[1736683295290,1.0842794,690.96,689.62,1.78072119]
[1736683296289,1.0842794,690.96,689.62,4.79152972]
[1736683296487,1.0842794,690.96,689.63,1.78072119]
[1736683297586,1.0842794,690.97,689.63,1.78072119]
[1736683298085,1.0842794,690.97,689.63,4.79152972]
[1736683298288,1.0842794,690.96,689.64,1.78072119]
[1736683299686,1.0842794,690.96,689.63,1.78072119]
[1736683300393,1.0842794,690.9,689.63,1.78072119]
[1736683300887,1.0842794,690.9,689.58,2.68180369]
[1736683301891,1.0842794,690.9,689.59,3.01080853]
[1736683302090,1.0842794,690.9,689.6,2.68180369]
[1736683303892,1.0842794,690.9,689.61,3.01080853]
[1736683304089,1.0842794,690.89,689.62,1.78072119]
[1736683304690,1.37376108,690.89,689.62,1.78072119]
[1736683305194,1.0842794,690.88,689.62,1.78072119]
[1736683305694,1.0842794,690.88,689.59,2.6819511]
[1736683306492,1.0842794,690.88,689.58,3.01080853]
[1736683306692,0.28949006,690.87,689.58,3.01080853]
[1736683307092,0.28949006,690.87,689.57,1.59075137]
[1736683307495,0.28949006,690.87,689.57,0.29003581]
[1736683314097,0.28949006,690.87,689.59,1.30071556]
[1736683314791,0.28949006,690.87,689.59,1.59074296]
[1736683315991,0.28949006,690.87,689.59,0.2900274]
[1736683316896,0.28949006,690.87,689.62,1.30071556]
[1736683317796,0.28949006,690.87,689.6,1.30071556]
[1736683318695,0.28949006,690.87,689.61,1.30071556]
[1736683319397,0.28949006,690.87,689.62,1.30071556]
[1736683320799,0.28949006,690.87,689.61,1.30071556]
[1736683322493,0.28949006,690.87,689.6,3.98504989]
[1736683322699,0.28949006,690.87,689.61,0.90152024]
[1736683323899,0.28949006,690.87,689.61,3.91232877]
[1736683324100,0.28949006,690.87,689.62,2.68433433]
[1736683325001,0.28949006,690.87,689.63,3.01080853]
[1736683325196,0.28949006,690.87,689.64,2.68433433]
[1736683327102,0.28949006,690.87,689.65,3.01080853]
[1736683327302,0.28949006,690.87,689.66,2.68433433]
[1736683329203,0.28949006,690.87,689.67,3.01080853]
[1736683329399,0.28949006,690.87,689.68,2.68433433]
[1736683329603,0.28949006,690.87,689.68,1.78281409]
[1736683331010,0.28949006,690.87,689.67,1.78281409]
[1736683332803,0.28949006,690.87,689.65,2.68589736]
[1736683334110,0.28949006,690.87,689.65,1.78281409]
[1736683334509,0.28949006,690.87,689.64,3.01080853]
[1736683335310,0.28949006,690.87,689.61,1.30071556]
[1736683335809,1.37376946,690.87,689.59,0.2900274]
[1736683336805,1.0842794,690.86,689.59,0.2900274]
[1736683337606,1.0842794,690.83,689.59,0.2900274]
[1736683338212,0.28951101,690.82,689.59,0.2900274]
[1736683361220,1.80247226,690.82,689.59,0.2900274]
[1736683367729,1.79356567,690.82,689.59,0.2900274]
[1736683371132,2.87564804,690.82,689.59,0.2900274]
[1736683372629,1.79356567,690.82,689.59,0.2900274]
[1736683376732,2.87564804,690.82,689.59,0.2900274]
[1736683377426,1.08208237,690.8,689.59,0.2900274]
[1736683377627,0.28952358,690.79,689.59,0.2900274]
[1736683378431,1.08208237,690.77,689.59,0.2900274]
[1736683378727,0.28953616,690.76,689.59,0.2900274]
[1736683379327,1.51320247,690.75,689.59,0.2900274]
[1736683380829,0.28954454,690.74,689.59,0.2900274]
[1736683381233,0.28954454,690.74,688.76,1.30035534]
[1736683381435,0.28954454,690.74,688.78,0.29036847]
[1736683381735,0.28954454,690.74,688.78,1.59072381]
[1736683382838,0.28954454,690.74,688.78,0.29036847]
[1736683388445,0.28954454,690.74,688.83,1.30035534]
[1736683389143,0.28954454,690.74,688.85,0.29033897]
[1736683389343,0.28954454,690.74,688.89,1.30035534]
[1736683390044,0.28954454,690.74,688.91,0.29031368]
[1736683392046,0.28954454,690.74,689.03,1.30035534]
[1736683392244,0.28954454,690.74,689.05,0.29025469]
[1736683393948,1.08208237,690.7,689.32,1.30035534]
[1736683394646,1.08208237,690.71,689.32,1.30035534]
[1736683396246,1.08208237,690.71,689.31,1.30035534]
[1736683396446,1.08208237,690.71,689.31,1.59050055]
[1736683397149,0.28954454,690.74,689.35,1.30035534]
[1736683398948,0.28954454,690.74,689.37,1.30035534]
[1736683400647,0.28954454,690.74,689.38,0.29011575]
[1736683401045,0.28954454,690.74,689.46,1.30035534]
[1736683402742,0.28954454,690.74,689.47,1.30035534]
[1736683403542,0.28954454,690.74,689.5,1.30035534]
[1736683404347,0.28954454,690.74,689.43,2.68612828]
[1736683405951,0.28954454,690.74,689.44,3.0176368]
[1736683406148,0.28954454,690.74,689.45,2.68612828]
[1736683407148,0.28954454,690.74,689.45,2.97621458]
[1736683407355,0.28954454,690.74,689.46,0.29008209]
[1736683407950,0.28954454,690.74,689.46,3.30771889]
[1736683408152,0.28954454,690.74,689.47,2.68612828]
[1736683408756,0.28954454,690.74,689.48,0.29007367]
[1736683409557,0.28954454,690.74,689.48,3.30771047]
[1736683409751,0.28954454,690.74,689.49,2.68612828]
[1736683411557,0.28954454,690.74,689.5,3.0176368]
[1736683411756,0.28954454,690.74,689.51,1.78348903]
[1736683412458,0.28954454,690.74,689.51,2.68613122]
[1736683413058,0.28954454,690.74,689.52,1.78348903]
[1736683413258,0.28954454,690.74,689.48,0.29007367]
[1736683418959,0.28954454,690.74,689.48,2.9761079]
[1736683419356,0.28954454,690.74,689.48,2.0735627]
[1736683420456,0.28954454,690.74,689.48,0.29007367]
[1736683428966,0.28954454,690.74,689.48,2.97522088]
[1736683429162,0.28954454,690.74,689.49,3.0176368]
[1736683429458,0.28954454,690.74,689.5,1.78348903]
[1736683429663,0.28954454,690.74,689.49,3.0176368]
[1736683431064,0.28954454,690.74,689.48,0.29007367]
[1736683443973,0.28954454,690.74,689.48,1.59042901]
[1736683445578,0.28954454,690.74,689.48,0.29007367]
[1736683458491,0.26626447,690.73,689.48,0.29007367]
[1736683458686,0.28955293,690.72,689.48,0.29007367]
[1736683461791,0.26626811,690.71,689.48,0.29007367]
[1736683462590,0.28955293,690.72,689.48,0.29007367]
[1736683484410,1.08208237,690.71,689.48,0.29007367]
[1736683484711,0.28956131,690.7,689.48,0.29007367]
[1736683485308,1.08208237,690.69,689.48,0.29007367]
[1736683485804,0.28956969,690.68,689.48,0.29007367]
[1736683492611,1.08208237,690.67,689.48,0.29007367]
[1736683492817,0.28957808,690.66,689.48,0.29007367]
[1736683493417,1.08208237,690.65,689.48,0.29007367]
[1736683495219,1.08208237,690.52,689.48,0.29007367]
[1736683496020,0.28957808,690.66,689.48,0.29007367]
[1736683496021,1.08208237,690.51,689.48,0.29007367]
[1736683498716,1.08208237,690.49,689.48,0.29007367]
[1736683499622,1.08208237,690.58,689.48,0.29007367]
[1736683499816,0.28961582,690.57,689.48,0.29007367]
[1736683564864,0.28961582,690.57,689.52,1.30035534]
[1736683566867,0.28961582,690.57,689.54,1.30035534]
[1736683568059,0.28961582,690.57,689.53,1.30035534]
[1736683568962,0.28961582,690.57,689.49,1.30035534]
[1736683569663,0.28961582,690.57,689.5,1.30035534]
[1736683570865,0.28961582,690.57,689.51,1.30035534]
[1736683571562,0.28961582,690.57,689.51,3.08597496]
[1736683572764,0.28961582,690.57,689.52,1.30035534]
[1736683572961,0.28961582,690.57,689.52,4.31901279]
[1736683573158,0.28961582,690.57,689.53,1.78561962]
[1736683574865,0.28961582,690.57,689.53,4.80427707]
[1736683575065,0.28961582,690.57,689.54,1.78561962]
[1736683576061,0.28961582,690.57,689.53,1.78561962]
[1736683576766,0.28961582,690.57,689.56,1.30035534]
[1736683577869,0.28961582,690.57,689.56,2.20413993]
[1736683578271,0.28961582,690.57,689.57,1.30035534]
[1736683579270,0.28961582,690.57,689.56,5.22299812]
[1736683579472,0.28961582,690.57,689.57,1.78561962]
[1736683580863,0.28961582,690.57,689.57,6.10463241]
[1736683581067,0.28961582,690.57,689.58,1.78561962]
[1736683581871,0.28961582,690.57,689.58,4.80427707]
[1736683582070,0.28961582,690.57,689.59,1.78561962]
[1736683583968,0.28961582,690.57,689.58,1.78561962]
[1736683584674,0.28961582,690.57,689.57,3.01865745]
[1736683585774,0.28961582,690.57,689.48,0.29007367]
[1736683613679,0.28959485,690.62,689.48,0.29007367]
[1736683645715,0.28959485,690.62,688.93,1.78385741]
[1736683645913,0.28959485,690.62,688.94,0.29030104]
[1736683646516,0.28959485,690.62,688.94,1.1940238]
[1736683646722,0.28959485,690.62,688.94,0.29030104]
[1736683647021,1.37167722,690.62,688.94,0.29030104]
[1736683648120,1.08208237,690.56,688.94,0.29030104]
[1736683648322,0.28962421,690.55,688.94,0.29030104]
[1736683649320,1.37170658,690.55,688.94,0.29030104]
[1736683649919,0.28962421,690.55,688.94,0.29030104]
[1736683652025,1.34845426,690.54,688.94,0.29030104]
[1736683652220,0.55600449,690.53,688.94,0.29030104]
[1736683652418,0.55600868,690.52,688.94,0.29030104]
[1736683652621,0.55601287,690.51,688.94,0.29030104]
[1736683652821,0.28964518,690.5,688.94,0.29030104]
[1736683653229,1.37172755,690.5,688.98,1.30035534]
[1736683653523,1.37172755,690.5,688.99,0.29027997]
[1736683654127,0.28964518,690.5,688.99,0.29027997]
[1736683654827,1.5136248,690.49,688.99,0.29027997]
[1736683655025,0.28965357,690.48,688.99,0.29027997]
[1736683668335,0.26638082,690.47,688.99,0.29027997]
[1736683668530,0.28966196,690.46,688.99,0.29027997]
[1736683669037,0.26638101,690.45,688.99,0.29027997]
[1736683669233,0.28967035,690.44,688.99,0.29027997]
[1736683677136,0.26638429,690.43,688.99,0.29027997]
[1736683677338,0.28967874,690.42,688.99,0.29027997]
[1736683677734,1.80344619,690.42,688.99,0.29027997]
[1736683679345,1.08208237,690.39,688.99,0.29027997]
[1736683679543,0.28969552,690.38,688.99,0.29027997]
[1736683680336,1.08208237,690.37,688.99,1.59063531]
[1736683682341,1.08208237,690.33,689.04,1.30035534]
[1736683683339,1.08208237,690.32,689.05,1.30035534]
[1736683684443,1.08208237,690.32,689.07,1.30035534]
[1736683685244,0.28969552,690.38,688.99,0.29027997]
[1736683690448,1.08208237,690.35,688.99,0.29027997]
[1736683690846,0.28971231,690.34,688.99,0.29027997]
[1736683724672,0.28971231,690.34,689.0,1.30035534]
[1736683724866,0.28971231,690.34,689.01,0.29027154]
[1736683725668,0.28971231,690.34,689.21,1.30035534]
[1736683726674,0.28971231,690.34,689.2,1.30035534]
[1736683727473,0.28971231,690.34,689.15,0.90506963]
[1736683728368,0.28971231,690.34,689.15,3.92913557]
[1736683728572,0.28971231,690.34,689.16,2.69460097]
[1736683729374,0.28971231,690.34,689.17,3.02406594]
[1736683729575,0.28971231,690.34,689.18,2.69460097]
[1736683730873,0.28971231,690.34,689.19,3.02406594]
[1736683731071,0.28971231,690.34,689.2,2.69460097]
[1736683732770,0.28971231,690.34,689.21,3.02406594]
[1736683732974,0.28971231,690.34,689.22,2.69460097]
[1736683734570,0.28971231,690.34,689.23,3.02406594]